bitfinex-derivatives/quotes_BNBF0:USTF0_20230831
["timestamp","ask_amount","ask_price","bid_price","bid_amount"]
[1693510194373,0.07493427,217.12,216.85,0.18666989]
[1693510194577,0.07493427,217.11,216.86,0.18666989]
[1693510194780,0.07493427,217.1,216.85,0.18666989]
[1693510195077,0.07493427,217.1,216.86,0.18666989]
[1693510195278,0.07493427,217.09,216.87,0.18666989]
[1693510195474,0.07493427,217.09,216.83,0.18666989]
[1693510195680,0.07493427,217.09,216.84,0.18674221]
[1693510195879,0.07493427,217.09,216.82,0.18674221]
[1693510196080,0.07493427,217.09,216.83,0.18674221]
[1693510196281,0.07493427,217.09,216.82,0.18674221]
[1693510196480,0.07493427,217.09,216.83,0.18674221]
[1693510196780,0.07493427,217.09,216.84,0.18674221]
[1693510196980,0.07493427,217.09,216.82,0.18674221]
[1693510197181,0.07493427,217.09,216.83,0.18674221]
[1693510197481,0.07493427,217.09,216.84,0.18674221]
[1693510197681,0.07493427,217.09,216.82,0.18674221]
[1693510197874,0.07493427,217.09,216.83,0.18674221]
[1693510198078,0.07493427,217.09,216.84,0.18674221]
[1693510198273,0.07493427,217.09,216.85,0.18674221]
[1693510198479,0.07493427,217.09,216.82,0.18674221]
[1693510198779,0.07493427,217.09,216.83,0.18674221]
[1693510198977,0.07493427,217.09,216.82,0.18674221]
[1693510200385,0.07493427,217.09,216.82,0.2622759]
[1693510200585,0.07493427,217.09,216.83,0.18674221]
[1693510200781,0.07493427,217.1,216.83,0.18674221]
[1693510200979,0.07493427,217.11,216.84,0.07553369]
[1693510201177,0.07493427,217.12,216.85,0.18674221]
[1693510202489,0.07493427,217.12,216.85,0.2622759]
[1693510202682,0.07493427,217.12,216.86,0.18674221]
[1693510203082,0.07493427,217.12,216.85,0.18674221]
[1693510203285,0.07493427,217.12,216.86,0.18674221]
[1693510203687,0.07493427,217.11,216.85,0.18674221]
[1693510204591,0.07493427,217.11,216.84,0.18674221]
[1693510204889,0.07493427,217.1,216.85,0.18674221]
[1693510205089,0.07493427,217.1,216.84,0.18674221]
[1693510205289,0.07493427,217.1,216.85,0.18674221]
[1693510205490,0.07493427,217.1,216.84,0.18674221]
[1693510205690,0.49956181,217.14,216.76,0.15106739]
[1693510205691,0.07493427,217.09,216.85,0.18674221]
[1693510205886,0.07493427,217.09,216.83,0.18674221]
[1693510206189,0.07493427,217.09,216.84,0.18674221]
[1693510206390,0.07493427,217.09,216.83,0.18674221]
[1693510206591,0.07493427,217.09,216.82,0.07553369]
[1693510206592,0.07493427,217.09,216.84,0.18674221]
[1693510206786,0.07493427,217.09,216.83,0.18674221]
[1693510209994,0.07493427,217.09,216.83,0.2622759]
[1693510210194,0.07493427,217.09,216.84,0.18674221]
[1693510210894,0.07493427,217.1,216.84,0.18674221]
[1693510211791,0.07493427,217.1,216.84,0.2622759]
[1693510211995,0.07493427,217.1,216.85,0.18674221]
[1693510212396,0.07493427,217.09,216.85,0.18674221]
[1693510212589,0.07493427,217.1,216.84,0.18674221]
[1693510212790,0.07493427,217.09,216.84,0.18674221]
[1693510213196,0.07493427,217.1,216.84,0.18674221]
[1693510213391,0.07493427,217.09,216.84,0.18674221]
[1693510214296,0.07493427,217.1,216.84,0.18674221]
[1693510214497,0.07493427,217.1,216.84,0.2622759]
[1693510214690,0.07493427,217.1,216.85,0.18674221]
[1693510218894,0.07493427,217.11,216.85,0.2622759]
[1693510219098,0.07493427,217.11,216.86,0.18674221]
[1693510219797,0.07493427,217.11,216.86,0.2622759]
[1693510219994,0.07493427,217.11,216.87,0.18674221]
[1693510220194,0.07493427,217.11,216.86,0.18674221]
[1693510220394,0.07493427,217.11,216.87,0.18674221]
[1693510220599,0.07493427,217.11,216.86,0.18674221]
[1693510220796,0.07493427,217.1,216.86,0.18674221]
[1693510220995,0.07493427,217.1,216.85,0.2622759]
[1693510221195,0.07493427,217.11,216.86,0.18674221]
[1693510221597,0.07493427,217.1,216.86,0.18674221]
[1693510221797,0.07493427,217.1,216.85,0.18674221]
[1693510223004,0.07493427,217.1,216.85,0.2622759]
[1693510223199,0.07493427,217.1,216.86,0.18674221]
[1693510225204,0.07493427,217.09,216.86,0.18674221]
[1693510225399,0.07493427,217.09,216.85,0.18674221]
[1693510225602,0.07493427,217.09,216.86,0.18674221]
[1693510225797,0.07493427,217.09,216.85,0.18674221]
[1693510226904,0.07493427,217.09,216.85,0.2622759]
[1693510227103,0.07493427,217.09,216.86,0.18674221]
[1693510227300,0.07493427,217.1,216.86,0.18674221]
[1693510227700,0.07493427,217.1,216.86,0.2622759]
[1693510227907,0.07493427,217.1,216.87,0.18674221]
[1693510228104,0.07493427,217.1,216.86,0.18674221]
[1693510228402,0.07493427,217.1,216.87,0.18674221]
[1693510228600,0.07493427,217.1,216.88,0.18674221]
[1693510228799,0.07493427,217.1,216.79,0.15106739]
[1693510228800,0.07493427,217.1,216.87,0.18674221]
[1693510229004,0.07493427,217.1,216.88,0.18674221]
[1693510229206,0.07493427,217.1,216.86,0.18674221]
[1693510230106,0.07493427,217.11,216.86,0.2622759]
[1693510230309,0.07493427,217.11,216.87,0.18674221]
[1693510232311,0.07493427,217.12,216.87,0.2622759]
[1693510232608,0.07493427,217.12,216.88,0.18674221]
[1693510234112,0.07493427,217.16,216.91,0.07553369]
[1693510234309,0.07493427,217.17,216.92,0.07553369]
[1693510234711,0.07493427,217.17,216.93,0.18674221]
[1693510235112,0.07493427,217.19,216.93,0.18674221]
[1693510235412,0.07493427,217.18,216.94,0.18674221]
[1693510235607,0.07493427,217.18,216.95,0.18674221]
[1693510235807,0.07493427,217.18,216.91,0.2622759]
[1693510236113,0.07493427,217.2,216.92,0.18674221]
[1693510236311,0.07493427,217.2,216.9,0.07553369]
[1693510236312,0.07493427,217.2,216.91,0.18674221]
[1693510236512,0.07493427,217.19,216.92,0.18674221]
[1693510236711,0.07493427,217.19,216.93,0.18674221]
[1693510236912,0.07493427,217.19,216.9,0.18674221]
[1693510237105,0.07493427,217.19,216.91,0.18674221]
[1693510237309,0.07493427,217.19,216.89,0.18674221]
[1693510237512,0.07493427,217.19,216.9,0.18674221]
[1693510237709,0.07493427,217.19,216.91,0.18674221]
[1693510238015,0.07493427,217.2,216.92,0.18674221]
[1693510238215,0.07493427,217.2,216.89,0.18674221]
[1693510238409,0.07493427,217.2,216.9,0.18674221]
[1693510238607,0.07493427,217.2,216.89,0.18674221]
[1693510239013,0.07493427,217.21,216.89,0.18674221]
[1693510239214,0.07493427,217.2,216.88,0.18674221]
[1693510239517,0.07493427,217.21,216.89,0.18674221]
[1693510239716,0.07493427,217.21,216.88,0.18674221]
[1693510240512,0.07493427,217.21,216.87,0.2622759]
[1693510240718,0.07493427,217.21,216.88,0.18674221]
[1693510241719,0.07493427,217.22,216.88,0.18674221]
[1693510242120,0.07493427,217.22,216.89,0.18674221]
[1693510242320,0.07493427,217.22,216.87,0.18674221]
[1693510242520,0.07493427,217.22,216.88,0.18674221]
[1693510242720,0.07493427,217.22,216.87,0.18674221]
[1693510242920,0.07493427,217.22,216.88,0.18674221]
[1693510243120,0.07493427,217.22,216.87,0.18674221]
[1693510247216,0.07493427,217.22,216.88,0.18674221]
[1693510247423,0.07493427,217.22,216.86,0.2622759]
[1693510247626,0.07493427,217.22,216.87,0.18674221]
[1693510248421,0.07493427,217.22,216.86,0.18674221]
[1693510248621,0.07493427,217.22,216.87,0.18674221]
[1693510248824,0.07493427,217.22,216.86,0.18674221]
[1693510249122,0.07493427,217.22,216.87,0.18674221]
[1693510249323,0.07493427,217.22,216.86,0.18674221]
[1693510249525,0.07493427,217.22,216.87,0.18674221]
[1693510249822,0.07493427,217.22,216.88,0.18674221]
[1693510250022,0.07493427,217.22,216.86,0.18674221]
[1693510250223,0.07493427,217.22,216.87,0.18674221]
[1693510250524,0.07493427,217.22,216.88,0.18674221]
[1693510250723,0.07493427,217.22,216.86,0.18674221]
[1693510250924,0.07493427,217.22,216.87,0.18674221]
[1693510251123,0.07493427,217.22,216.86,0.18674221]
[1693510251422,0.07493427,217.22,216.87,0.18674221]
[1693510251618,0.07493427,217.22,216.86,0.18674221]
[1693510251825,0.07493427,217.22,216.87,0.18674221]
[1693510252020,0.07493427,217.21,216.86,0.18674221]
[1693510252322,0.07493427,217.21,216.87,0.18674221]
[1693510252524,0.07493427,217.21,216.88,0.18674221]
[1693510252717,0.07493427,217.21,216.89,0.18674221]
[1693510252920,0.07493427,217.21,216.9,0.18674221]
[1693510253222,0.07493427,217.21,216.91,0.18674221]
[1693510253422,0.07493427,217.21,216.92,0.18674221]
[1693510253724,0.07493427,217.21,216.93,0.18674221]
[1693510254022,0.07493427,217.21,216.94,0.18674221]
[1693510254219,0.07493427,217.21,216.85,0.07553369]
[1693510254424,0.07493427,217.21,216.86,0.26197624]
[1693510254723,0.07493427,217.21,216.87,0.18644255]
[1693510254924,0.07493427,217.21,216.88,0.18644255]
[1693510255127,0.07493427,217.21,216.89,0.18644255]
[1693510255326,0.07493427,217.21,216.86,0.18644255]
[1693510255526,0.07493427,217.21,216.87,0.18644255]
[1693510255721,0.07493427,217.21,216.86,0.18644255]
[1693510255920,0.07493427,217.21,216.85,0.07553369]
[1693510255921,0.07493427,217.21,216.87,0.18644255]
[1693510256122,0.07493427,217.21,216.88,0.18644255]
[1693510256422,0.07493427,217.21,216.89,0.18644255]
[1693510256618,0.07493427,217.21,216.9,0.18644255]
[1693510256821,0.07493427,217.21,216.91,0.18644255]
[1693510257025,0.07493427,217.21,216.86,0.26197624]
[1693510257323,0.07493427,217.21,216.87,0.18644255]
[1693510258026,0.07493427,217.2,216.87,0.18644255]
[1693510259327,0.07493427,217.21,216.87,0.26197624]
[1693510259529,0.07493427,217.21,216.88,0.18644255]
[1693510259823,0.07493427,217.21,216.88,0.26197624]
[1693510260030,0.07493427,217.21,216.89,0.18644255]
[1693510260928,0.07493427,217.21,216.89,0.26197624]
[1693510261329,0.07493427,217.22,216.9,0.18644255]
[1693510261935,0.07493427,217.21,216.9,0.26197624]
[1693510262130,0.07493427,217.21,216.91,0.18644255]
[1693510262329,0.07493427,217.23,216.91,0.26197624]
[1693510262530,2.49780908,217.37,216.25,7.04981181]
[1693510262531,0.07493427,217.28,216.96,0.07553369]
[1693510262734,0.07493427,217.28,216.97,0.18644255]
[1693510262934,0.07493427,217.27,216.97,0.18644255]
[1693510264134,0.07493427,217.27,216.98,0.18644255]
[1693510264339,0.07493427,217.27,216.99,0.18644255]
[1693510264532,0.07493427,217.27,216.95,0.07553369]
[1693510264533,0.07493427,217.27,216.96,0.18644255]
[1693510264839,0.07493427,217.28,216.96,0.18644255]
[1693510265040,0.07493427,217.28,216.95,0.18644255]
[1693510265237,0.07493427,217.28,216.94,0.07553369]
[1693510265238,0.07493427,217.28,216.96,0.18644255]
[1693510265438,0.07493427,217.28,216.95,0.18644255]
[1693510265641,0.07493427,217.28,216.96,0.18644255]
[1693510265835,0.07493427,217.29,216.95,0.18644255]
[1693510266038,0.07493427,217.29,216.96,0.18644255]
[1693510266239,0.07493427,217.29,216.97,0.18644255]
[1693510266441,0.07493427,217.29,216.96,0.18644255]
[1693510266641,0.07493427,217.3,216.97,0.18644255]
[1693510266940,0.07493427,217.29,216.98,0.18644255]
[1693510267135,0.07493427,217.29,216.95,0.18644255]
[1693510267339,0.07493427,217.29,216.96,0.18644255]
[1693510267540,0.07493427,217.29,216.97,0.18644255]
[1693510267739,0.07493427,217.29,216.98,0.18644255]
[1693510267939,0.07493427,217.29,216.94,0.18644255]
[1693510268237,0.07493427,217.29,216.95,0.18644255]
[1693510268439,0.07493427,217.29,216.96,0.18644255]
[1693510268634,0.07493427,217.29,216.97,0.18644255]
[1693510268834,0.07493427,217.29,216.98,0.18644255]
[1693510269140,0.07493427,217.29,216.99,0.18644255]
[1693510269335,0.07493427,217.29,217.0,0.18644255]
[1693510269532,0.07493427,217.29,216.94,0.18644255]
[1693510269738,0.07493427,217.29,216.95,0.18644255]
[1693510269940,0.07493427,217.29,216.94,0.18644255]
[1693510270134,0.07493427,217.3,216.95,0.18644255]
[1693510270435,0.07493427,217.3,216.96,0.18644255]
[1693510270635,0.07493427,217.29,216.97,0.18644255]
[1693510270835,0.07493427,217.29,216.98,0.18644255]
[1693510271037,0.07493427,217.3,216.99,0.18644255]
[1693510271239,0.07493427,217.3,216.93,0.18644255]
[1693510271442,0.07493427,217.3,216.94,0.18644255]
[1693510271640,0.07493427,217.3,216.93,0.18644255]
[1693510271839,0.07493427,217.3,216.94,0.18644255]
[1693510272035,0.07493427,217.31,216.93,0.26197624]
[1693510272232,0.07493427,217.31,216.94,0.18644255]
[1693510273041,0.07493427,217.31,216.93,0.18644255]
[1693510273241,0.07493427,217.31,216.94,0.18644255]
[1693510273441,0.07493427,217.31,216.93,0.18644255]
[1693510273638,0.07493427,217.31,216.94,0.18644255]
[1693510273843,0.07493427,217.31,216.93,0.18644255]
[1693510274044,0.07493427,217.31,216.94,0.18644255]
[1693510274245,0.07493427,217.31,216.92,0.18644255]
[1693510274543,0.07493427,217.31,216.91,0.07553369]
[1693510274544,0.07493427,217.31,216.93,0.18644255]
[1693510274745,0.07493427,217.31,216.92,0.18644255]
[1693510275044,0.07493427,217.32,216.93,0.18644255]
[1693510276543,0.07493427,217.33,216.93,0.18644255]
[1693510277044,0.07493427,217.34,216.93,0.18644255]
[1693510277243,0.07493427,217.33,216.93,0.18644255]
[1693510277645,0.07493427,217.34,216.93,0.18644255]
[1693510280347,0.07493427,217.34,216.94,0.18644255]
[1693510280540,0.07493427,217.34,216.92,0.18644255]
[1693510280738,0.07493427,217.34,216.93,0.18644255]
[1693510281340,0.07493427,217.34,216.92,0.18644255]
[1693510281546,0.07493427,217.34,216.93,0.18644255]
[1693510281743,0.07493427,217.34,216.94,0.18644255]
[1693510281942,0.07493427,217.34,216.95,0.18644255]
[1693510282145,0.07493427,217.35,216.96,0.18644255]
[1693510282342,0.49956181,217.39,216.85,0.15106739]
[1693510282343,0.07493427,217.34,216.97,0.18644255]
[1693510282544,0.07493427,217.34,216.98,0.18644255]
[1693510282848,0.07493427,217.34,216.99,0.18644255]
[1693510283145,0.07493427,217.34,217.0,0.18644255]
[1693510283348,0.07493427,217.34,216.91,0.07553369]
[1693510283349,0.07493427,217.34,217.01,0.18644255]
[1693510283549,0.07493427,217.34,217.02,0.18644255]
[1693510283746,0.07493427,217.34,217.03,0.18644255]
[1693510283941,0.07493427,217.34,217.04,0.18644255]
[1693510284148,0.07493427,217.34,216.91,0.07553369]
[1693510284349,0.07493427,217.34,216.92,0.18596334]
[1693510285246,0.07493427,217.34,216.92,0.26149703]
[1693510285450,0.07493427,217.34,216.93,0.18596334]
[1693510286951,0.07493427,217.33,216.93,0.26149703]
[1693510287253,0.07493427,217.33,216.94,0.18596334]
[1693510288149,0.07493427,217.33,216.95,0.18596334]
[1693510288352,0.07493427,217.33,216.94,0.18596334]
[1693510288546,0.07493427,217.33,216.96,0.18596334]
[1693510288747,0.07493427,217.33,216.97,0.18596334]
[1693510288947,0.07493427,217.33,216.98,0.18596334]
[1693510289146,0.07493427,217.33,216.94,0.18596334]
[1693510289351,0.07493427,217.33,216.95,0.18596334]
[1693510289549,0.07493427,217.33,216.94,0.18596334]
[1693510289750,0.07493427,217.33,216.93,0.07553369]
[1693510289751,0.07493427,217.33,216.95,0.18596334]
[1693510289948,0.07493427,217.32,216.96,0.18596334]
[1693510290152,0.07493427,217.32,216.95,0.18596334]
[1693510290956,0.07493427,217.32,216.95,0.26149703]
[1693510291155,0.07493427,217.32,216.96,0.18596334]
[1693510291556,0.49956181,217.36,216.96,0.18596334]
[1693510291557,0.07493427,217.31,216.96,0.18596334]
[1693510291756,0.07493427,217.32,216.95,0.18596334]
[1693510291950,0.07493427,217.32,216.96,0.18596334]
[1693510292151,0.07493427,217.31,216.96,0.26149703]
[1693510292353,0.07493427,217.31,216.97,0.18596334]
[1693510292654,0.07493427,217.31,216.98,0.18596334]
[1693510292856,0.07493427,217.31,216.97,0.18596334]
[1693510293055,0.07493427,217.31,216.96,0.07553369]
[1693510293056,3.22625864,217.64,216.98,0.18596334]
[1693510293255,0.07525588,217.3,216.99,0.18596334]
[1693510293558,0.07525588,217.3,217.0,0.18596334]
[1693510293758,0.07525588,217.3,217.01,0.18596334]
[1693510294059,0.07525588,217.28,217.02,0.18596334]
[1693510294257,0.07525588,217.28,216.98,0.07519755]
[1693510294258,0.07525588,217.29,216.99,0.18596334]
[1693510294458,0.07525588,217.29,217.0,0.18596334]
[1693510294656,0.07525588,217.29,217.01,0.18596334]
[1693510294852,0.07525588,217.29,217.02,0.18596334]
[1693510295051,0.07525588,217.27,217.03,0.18596334]
[1693510295256,0.07525588,217.27,217.04,0.18596334]
[1693510295455,0.07525588,217.27,217.01,0.18596334]
[1693510295655,0.07525588,217.27,217.02,0.18594895]
[1693510295859,0.07525588,217.27,217.03,0.18594895]
[1693510296059,0.07525588,217.27,217.04,0.18594895]
[1693510296256,0.07525588,217.27,217.0,0.07519755]
[1693510296562,0.07525588,217.27,217.01,0.18594835]
[1693510297363,0.07525588,217.26,217.02,0.07519755]
[1693510297561,0.07525588,217.26,217.03,0.18594835]
[1693510299263,0.07525588,217.25,217.03,0.18594835]
[1693510299459,0.07525588,217.25,217.02,0.18594835]
[1693510299763,0.07525588,217.25,217.03,0.18594835]
[1693510299957,0.07525588,217.25,217.02,0.18594835]
[1693510300157,0.07525588,217.25,217.01,0.07519755]
[1693510300158,0.07525588,217.25,217.03,0.18594835]
[1693510300359,0.07525588,217.25,217.02,0.18594835]
[1693510300561,0.07525588,217.25,217.03,0.18594835]
[1693510300756,0.07525588,217.25,217.04,0.18594835]
[1693510301057,0.07525588,217.25,217.01,0.07519755]
[1693510301261,0.07525588,217.25,217.02,0.18594909]
[1693510301560,0.07525588,217.25,217.02,0.26114664]
[1693510301758,0.07525588,217.25,217.03,0.18594909]
[1693510303969,0.07525588,217.26,217.03,0.26114664]
[1693510304269,0.07525588,217.26,217.04,0.26114664]
[1693510304461,0.07525588,217.27,217.05,0.18594909]
[1693510304666,0.07525588,217.26,217.05,0.18594909]
[1693510305068,0.07525588,217.27,217.04,0.26114664]
[1693510305365,0.07525588,217.26,217.05,0.18594909]
[1693510305569,0.07525588,217.27,217.06,0.18594909]
[1693510305768,0.07525588,217.27,217.04,0.07519755]
[1693510305964,0.07525588,217.27,217.05,0.18584248]
[1693510326075,0.07525588,217.26,217.05,0.18584248]
[1693510326278,0.07525588,217.26,217.06,0.18584248]
[1693510326576,0.07525588,217.26,217.03,0.07519755]
[1693510326768,0.07525588,217.26,217.04,0.18592249]
[1693510328070,0.07525588,217.27,217.04,0.26112004]
[1693510328376,0.07525588,217.27,217.05,0.18592249]
[1693510328775,0.07525588,217.28,217.05,0.26112004]
[1693510328975,0.07525588,217.28,217.06,0.18592249]
[1693510330573,0.07525588,217.33,217.1,0.07519755]
[1693510330877,0.07525588,217.33,217.11,0.18592249]
[1693510331279,0.07525588,217.33,217.11,0.26112004]
[1693510331478,0.07525588,217.33,217.12,0.18592249]
[1693510331679,0.07525588,217.35,217.12,0.18592249]
[1693510331978,0.07525588,217.35,217.13,0.18592249]
[1693510332178,0.07525588,217.35,217.1,0.18592249]
[1693510332575,0.07525588,217.36,217.1,0.18592249]
[1693510332782,0.07525588,217.36,217.09,0.18592249]
[1693510332980,0.07525588,217.36,217.1,0.18592249]
[1693510333279,0.07525588,217.37,217.11,0.18592249]
[1693510333473,0.07525588,217.37,217.09,0.18592249]
[1693510333677,0.07525588,217.37,217.1,0.18592249]
[1693510333876,0.07525588,217.37,217.08,0.18592249]
[1693510334081,0.07525588,217.38,217.09,0.18592249]
[1693510334280,0.07525588,217.38,217.08,0.26112004]
[1693510334481,0.07525588,217.38,217.09,0.18592249]
[1693510335885,0.07525588,217.38,217.08,0.18592249]
[1693510336184,0.07525588,217.38,217.09,0.18592249]
[1693510336384,0.07525588,217.38,217.08,0.18592249]
[1693510336578,0.07525588,217.39,217.09,0.18592249]
[1693510336784,0.07525588,217.39,217.07,0.18592249]
[1693510336980,0.07525588,217.39,217.08,0.18592249]
[1693510337182,0.07525588,217.39,217.07,0.18592249]
[1693510337384,0.07525588,217.39,217.06,0.07519755]
[1693510337581,0.07525588,217.39,217.08,0.1853992]
[1693510337777,0.07525588,217.39,217.09,0.1853992]
[1693510337983,0.07525588,217.39,217.1,0.1853992]
[1693510338183,0.07525588,217.39,217.11,0.1853992]
[1693510338383,0.07525588,217.39,217.07,0.1853992]
[1693510338578,0.07525588,217.4,217.08,0.1853992]
[1693510338777,0.07525588,217.39,217.09,0.1853992]
[1693510338983,0.07525588,217.39,217.1,0.1853992]
[1693510339187,0.07525588,217.39,217.07,0.1853992]
[1693510339380,0.07525588,217.39,217.08,0.1853992]
[1693510339578,0.07525588,217.4,217.07,0.1853992]
[1693510339778,0.07525588,217.4,217.08,0.1853992]
[1693510340086,0.07525588,217.4,217.09,0.1853992]
[1693510340385,0.07525588,217.4,217.1,0.1853992]
[1693510340588,0.07525588,217.4,217.06,0.1853992]
[1693510340884,0.07525588,217.4,217.07,0.1853992]
[1693510341087,0.07525588,217.4,217.08,0.1853992]
[1693510341285,0.07525588,217.4,217.09,0.1853992]
[1693510341586,0.07525588,217.4,217.1,0.1853992]
[1693510341785,0.07525588,217.4,217.06,0.1853992]
[1693510341985,0.07525588,217.4,217.07,0.1853992]
[1693510342183,0.07525588,217.4,217.06,0.1853992]
[1693510342384,0.07525588,217.41,217.07,0.1853992]
[1693510342586,0.07525588,217.41,217.08,0.1853992]
[1693510342784,0.07525588,217.41,217.06,0.1853992]
[1693510342980,0.07525588,217.41,217.07,0.1853992]
[1693510343280,0.07525588,217.41,217.08,0.1853992]
[1693510343481,0.07525588,217.41,217.06,0.1853992]
[1693510343686,0.07525588,217.41,217.07,0.1853992]
[1693510343886,0.07525588,217.41,217.06,0.1853992]
[1693510344088,0.07525588,217.41,217.07,0.1853992]
[1693510344280,0.07525588,217.41,217.05,0.1853992]
[1693510344485,0.07525588,217.41,217.06,0.1853992]
[1693510344685,0.07525588,217.41,217.07,0.1853992]
[1693510344885,0.07525588,217.42,217.05,0.26059675]
[1693510345186,0.07525588,217.42,217.06,0.1853992]
[1693510345789,0.07525588,217.42,217.07,0.1853992]
[1693510345987,0.07525588,217.42,217.05,0.1853992]
[1693510346188,0.07525588,217.42,217.06,0.1853992]
[1693510346389,0.07525588,217.42,217.05,0.1853992]
[1693510346584,0.07525588,217.42,217.06,0.1853992]
[1693510346782,0.07525588,217.42,217.05,0.1853992]
[1693510346989,0.07525588,217.42,217.06,0.1853992]
[1693510347188,0.07525588,217.42,217.07,0.1853992]
[1693510347392,0.07525588,217.42,217.08,0.1853992]
[1693510347584,0.07525588,217.42,217.05,0.1853992]
[1693510347892,0.07525588,217.42,217.06,0.1853992]
[1693510348189,0.07525588,217.42,217.07,0.1853992]
[1693510348389,0.07525588,217.42,217.08,0.1853992]
[1693510348589,0.07525588,217.42,217.04,0.07519755]
[1693510348590,0.07525588,217.42,217.05,0.1853992]
[1693510348790,0.07525588,217.42,217.06,0.1853992]
[1693510348986,0.07525588,217.42,217.07,0.1853992]
[1693510349290,0.07525588,217.42,217.08,0.1853992]
[1693510349489,0.07525588,217.42,217.04,0.07519755]
[1693510349490,0.07525588,217.42,217.05,0.1853992]
[1693510349687,0.07525588,217.42,217.06,0.1853992]
[1693510349884,0.07237081,217.43,217.07,0.1853992]
[1693510350086,0.07237081,217.43,217.05,0.26059675]
[1693510350290,0.07237081,217.43,217.06,0.1853992]
[1693510350791,0.15051177,217.46,217.06,0.1853992]
[1693510353201,5.01705928,217.63,217.06,0.1853992]
[1693510353397,0.84563309,229.99,214.23,0.1853992]
[1693510353595,0.15021493,217.46,217.05,0.07495037]
[1693510353798,0.15021493,217.46,217.06,0.1853992]
[1693510354094,0.15021493,217.45,217.06,0.1853992]
[1693510354397,0.15021493,217.45,217.07,0.1853992]
[1693510354593,0.15021493,217.45,217.05,0.26034957]
[1693510354797,0.15021493,217.45,217.06,0.1853992]
[1693510355692,0.15021493,217.46,217.06,0.1853992]
[1693510356093,0.15021493,217.45,217.06,0.1853992]
[1693510358502,0.15021493,217.44,217.06,0.26034957]
[1693510358702,0.15021493,217.44,217.07,0.1853992]
[1693510358902,0.15021493,217.44,217.08,0.1853992]
[1693510359101,0.15021493,217.44,217.09,0.1853992]
[1693510359401,0.15021493,217.44,217.1,0.1853992]
[1693510359602,0.15021493,217.44,217.06,0.26034957]
[1693510359803,0.15021493,217.44,217.07,0.1853992]
[1693510360402,0.15021493,217.43,217.07,0.26034957]
[1693510360603,0.15021493,217.43,217.08,0.1853992]
[1693510360803,0.15021493,217.42,217.08,0.1853992]
[1693510360999,0.15021493,217.41,217.09,0.1853992]
[1693510361202,0.15021493,217.41,217.1,0.1853992]
[1693510361403,0.15021493,217.41,217.11,0.1853992]
[1693510361603,0.15021493,217.4,217.06,0.26034957]
[1693510361905,0.15021493,217.4,217.07,0.1853992]
[1693510362098,0.15021493,217.4,217.07,0.26034957]
[1693510362403,0.15021493,217.4,217.08,0.1853992]
[1693510363400,0.15021493,217.39,217.08,0.26034957]
[1693510363600,0.15021493,217.38,217.09,0.1853992]
[1693510364401,0.15021493,217.36,217.1,0.07495037]
[1693510364609,0.15021493,217.36,217.11,0.1853992]
[1693510369803,0.15021493,217.37,217.11,0.26034957]
[1693510370007,0.15021493,217.37,217.12,0.1853992]
[1693510371611,0.15021493,217.36,217.12,0.1853992]
[1693510373912,0.15021493,217.37,217.12,0.1853992]
[1693510374308,0.15021493,217.36,217.12,0.1853992]
[1693510375611,0.15021493,217.37,217.12,0.1853992]
[1693510376915,0.15021493,217.38,217.12,0.26034957]
[1693510377109,0.15021493,217.38,217.13,0.1853992]
[1693510377917,0.15021493,217.38,217.13,0.26034957]
[1693510378215,0.15021493,217.38,217.14,0.1853992]
[1693510380413,0.15021493,217.39,217.14,0.1853992]
[1693510380717,0.15021493,217.38,217.14,0.1853992]
[1693510382118,0.15021493,217.39,217.14,0.1853992]
[1693510382323,0.15021493,217.38,217.14,0.1853992]
[1693510382820,0.15021493,217.38,217.15,0.1853992]
[1693510383020,0.15021493,217.38,217.12,0.07495037]
[1693510383220,0.15021493,217.38,217.13,0.18403822]
[1693510386415,0.15021493,217.37,217.13,0.18403822]
[1693510391121,0.15021493,217.36,217.13,0.18403822]
[1693510391422,0.15021493,217.36,217.14,0.18403822]
[1693510391621,0.15021493,217.36,217.11,0.07495037]
[1693510391822,0.15021493,217.36,217.12,0.18410802]
[1693510394824,0.15021493,217.36,217.12,0.25905839]
[1693510395025,0.15021493,217.36,217.13,0.18410802]
[1693510399329,0.15021493,217.37,217.13,0.18410802]
[1693510399529,0.15021493,217.36,217.13,0.18410802]
[1693510400436,0.15021493,217.37,217.13,0.18410802]
[1693510400832,0.15021493,217.36,217.13,0.18410802]
[1693510402333,0.15021493,217.36,216.89,0.99933836]
[1693510402334,0.15021493,217.32,217.08,0.07495037]
[1693510402527,0.15021493,217.32,217.05,0.07495037]
[1693510402725,0.15021493,217.32,217.06,0.18446674]
[1693510402926,0.15021493,217.31,217.05,0.18446674]
[1693510403129,0.15021493,217.31,217.06,0.18446674]
[1693510403330,0.15021493,217.31,217.05,0.18446674]
[1693510403534,0.15021493,217.33,217.06,0.18446674]
[1693510403734,0.15021493,217.33,217.07,0.18446674]
[1693510403932,0.15021493,217.33,217.04,0.18446674]
[1693510404227,0.15021493,217.33,217.05,0.18446674]
[1693510404433,0.15021493,217.33,217.04,0.18446674]
[1693510404734,0.15021493,217.33,217.05,0.18446674]
[1693510404929,0.15021493,217.33,217.06,0.18446674]
[1693510405134,0.15021493,217.33,217.03,0.18446674]
[1693510405330,0.15021493,217.34,217.04,0.18446674]
[1693510405535,0.15021493,217.34,217.02,0.07495037]
[1693510405536,0.15021493,217.34,217.05,0.18446674]